[Event "ChessKid Cup Div-III 2023"]
[Site "Online"]
[Date "2023.05.23"]
[Round "53.2"]
[White "Yu, Yangyi"]
[Black "Bluebaum, Matthias"]
[Result "1-0"]
[ECO "D31"]
[WhiteElo "2729"]
[BlackElo "2669"]
[Annotator "TA"]
[PlyCount "57"]
[EventDate "2023.05.21"]
[EventType "k.o."]
[EventCountry "NET"]
[SourceTitle "playchess.com"]
[Source "ChessBase"]
[SourceQuality "1"]
[TimeControl "900+3"]

{[%evp 9,57,20,21,0,0,0,0,0,4,2,7,0,0,0,10,11,22,18,20,17,74,58,118,112,113,116,109,92,96,89,115,114,134,137,170,165,190,189,280,276,314,313,660,652,736,675,1186,1157,1122,1088]} 1. d4 {[%emt 0:00:03]} d5 {[%emt 0:00:04]} 2. c4 {[%emt 0:00:05]} e6 {[%emt 0:00:00]} 3. Nc3 {[%emt 0:00:07]} Bb4 {[%emt 0:00:01]} 4. cxd5 {[%emt 0:00:46]} exd5 {[%emt 0:00:00]} 5. Bf4 {[%emt 0:00:01]} c5 {[%emt 0:00:01]} 6. e3 {[%emt 0:00:02] D31: Queen's Gambit Declined: Semi-Slav without ...Nf6 (+ Marshall Gambit and Noteboom) and Exchange Variation lines without ...Nf6.} c4 {[%emt 0:00:01]} 7. Nge2 $5 {[%emt 0:00:14][%mdl 4] Leaves trodden paths.} Nc6 {[%emt 0:00:05]} 8. a3 {[%emt 0:00:07] The position is equal.} Ba5 {[%emt 0:00:01]} 9. b4 {[%emt 0:00:29]} cxb3 {[%emt 0:00:01]} 10. Qxb3 {[%emt 0:00:01]} Be6 {[%emt 0:00:01] [#]} 11. Rc1 $5 $146 {[%emt 0:00:53][%mdl 8] An interesting novelty.} ({Predecessor:} 11. f3 Nf6 12. Kf2 O-O 13. Na4 Nh5 14. h4 b6 15. g4 Nxf4 16. Nxf4 Qd6 17. Qb2 {½-½ Nakamura,H (2736)-Anton Guijarro,D (2693) Wch Rapid Warsaw 2021 (7)}) 11... Nf6 {[%emt 0:00:20]} 12. Bg5 {[%emt 0:00:44]} h6 {[%emt 0:00:18]} 13. Bxf6 {[%emt 0:01:11]} (13. Qxb7 $2 hxg5 14. Qxc6+ Bd7 $19) 13... Qxf6 {[%emt 0:00:00]} 14. Ng3 {[%emt 0:00:15]} h5 {[%emt 0:01:02] [#]} (14... O-O $11 {remains equal.}) 15. Be2 $1 $16 {[%emt 0:03:04]} (15. Qxb7 O-O 16. Bb5 (16. Qxc6 $2 Rac8 $19) 16... Rab8 17. Qxc6 Rfc8 $15) 15... g6 {[%emt 0:00:17]} (15... h4 $14 16. Nh5 (16. Qxb7 O-O $11) 16... Qh6) 16. O-O {[%emt 0:00:28]} Bxc3 {[%emt 0:02:12]} 17. Qxb7 {[%emt 0:00:31]} (17. Qxc3 $6 h4 18. Qb2 O-O 19. Qxb7 Nxd4 20. exd4 hxg3 $11) 17... O-O {[%emt 0:00:15] aiming for ...Na5.} 18. Rxc3 {[%emt 0:00:15]} (18. Qxc6 $6 Rac8 19. Qb7 h4 $11) 18... Rab8 {[%emt 0:00:13] [#]} 19. Qa6 $36 {[%emt 0:00:47][%mdl 2048] White has strong initiative. White is more active.} (19. Qxc6 $6 Rbc8 $11) 19... Rb6 {[%emt 0:00:05]} 20. Qa4 {[%emt 0:00:01]} Bd7 {[%emt 0:00:00]} 21. Bf3 {[%emt 0:00:39]} h4 {[%emt 0:01:02]} 22. Ne2 {[%emt 0:00:03]} h3 {[%emt 0:00:00]} 23. Nf4 {[%emt 0:00:12]} hxg2 {[%emt 0:00:01]} (23... Qd8 $142 24. Rfc1 (24. Nxd5 Ne5 $14) (24. Bxd5 Ne7 $16) (24. gxh3 Ne5 $16) 24... Nb4 25. Qxa7 Nc6) 24. Bxg2 $18 {[%emt 0:00:02]} (24. Nxd5 $2 gxf1=Q+ 25. Kxf1 Qxf3 $19) 24... Qg5 {[%emt 0:00:43]} 25. Rc5 {[%emt 0:00:17]} ({Resist} 25. Nxd5 $6 Ne5 26. Qd1 (26. Qxa7 Bh3 $11) (26. f4 Nf3+ 27. Rxf3 Qxd5 $16) 26... Bh3 $18) 25... Ne5 $2 {[%emt 0:00:17]} (25... Kg7 26. Rxd5 Bf5) 26. Qxa7 {[%emt 0:00:05] White is clearly winning.} Nf3+ {[%emt 0:03:22]} 27. Kh1 {[%emt 0:00:01]} Bb5 {[%emt 0:00:17]} 28. Qxb6 {[%emt 0:00:41]} Bxf1 {[%emt 0:00:04]} 29. Bxf3 {[%emt 0:00:02] Weighted Error Value: White=0.01 (flawless) /Black=0.41} 1-0

[Event "ChessKid Cup Div-III 2023"]
[Site "Online"]
[Date "2023.05.23"]
[Round "53.2"]
[White "Navara, David"]
[Black "Raja Harshit"]
[Result "1/2-1/2"]
[ECO "E49"]
[WhiteElo "2678"]
[BlackElo "2515"]
[Annotator "TA"]
[PlyCount "118"]
[EventDate "2023.05.21"]
[EventType "k.o."]
[EventCountry "NET"]
[SourceTitle "playchess.com"]
[Source "ChessBase"]
[SourceQuality "1"]
[TimeControl "900+3"]

{[%evp 26,118,12,2,25,16,0,5,27,22,25,0,0,-43,-27,-85,-73,-74,-69,-92,-97,-67,-80,-95,-60,-64,-52,-128,-150,-182,-204,-198,-189,-203,-208,-187,-171,-178,-181,-216,-215,-168,-198,-277,-266,-218,0,0,0,0,0,0,0,0,0,0,0,0,0,0,0,0,0,0,0,0,0,0,0,0,0,0,0,0,0,0,0,0,0,0,0,0,0,0,0,0,0,0,0,0,0,0,0,0,0]} 1. d4 {[%emt 0:00:03]} Nf6 {[%emt 0:00:06]} 2. c4 {[%emt 0:00:01]} e6 {[%emt 0:00:01]} 3. Nc3 {[%emt 0:00:01]} Bb4 {[%emt 0:00:02]} 4. e3 {[%emt 0:00:01]} O-O {[%emt 0:00:02]} 5. Bd3 {[%emt 0:00:01]} d5 {[%emt 0:00:02]} 6. cxd5 {[%emt 0:00:00]} exd5 {[%emt 0:00:03]} 7. Nge2 {[%emt 0:00:01][%cal Bg1e2,Be2g3,Bg3f5][%mdl 32]} Re8 {[%emt 0:00:14]} 8. O-O {[%emt 0:00:04]} c5 {[%emt 0:01:34]} 9. a3 {[%emt 0:00:07]} Bxc3 {[%emt 0:00:02]} 10. bxc3 {[%emt 0:00:00]} b6 {[%emt 0:00:02]} 11. f3 {[%emt 0:00:08]} Ba6 {[%emt 0:00:02]} 12. Ng3 {[%emt 0:00:04]} Bxd3 {[%emt 0:00:02]} 13. Qxd3 {[%emt 0:00:00]} Nc6 {[%emt 0:00:02]} 14. Bb2 {[%emt 0:00:05]} h5 {[%emt 0:00:02][%cal Bh7h5,Bh5h4,Bh4h3][%mdl 32] 14...c4 is vanishing. E49: Nimzo-Indian: Rubinstein: 5 Bd3 d5 6 a3 Bxc3+ 7 bxc3.} 15. Rae1 {[%emt 0:00:24]} h4 {[%emt 0:00:03]} 16. Nf5 {[%emt 0:00:01]} h3 {[%emt 0:00:00]} 17. Ng3 {[%emt 0:00:20]} Ne7 {[%emt 0:01:22] [#]} 18. dxc5 $146 {[%emt 0:01:43]} ({Predecessor:} 18. e4 Ng6 19. Bc1 hxg2 20. Kxg2 dxe4 21. fxe4 Qd7 22. Kg1 Rac8 23. Nf5 cxd4 24. cxd4 Rxc1 25. Rxc1 Rxe4 {½-½ Shulman,B (2438)-Keuter,K (2435) RUS-ROW email 2018 [17]}) 18... Rc8 {[%emt 0:00:54]} 19. c4 {[%emt 0:00:26]} dxc4 {[%emt 0:00:10]} 20. Qxd8 {[%emt 0:01:51]} (20. Qxc4 $11 Rxc5 21. Qe2) 20... Rexd8 $17 {[%emt 0:00:00]} 21. Bxf6 {[%emt 0:00:40]} gxf6 {[%emt 0:00:00]} 22. Ne4 {[%emt 0:00:02]} Rd3 {[%emt 0:01:59]} (22... bxc5 $6 23. Nxf6+ Kg7 24. Nh5+ Kh6 25. Nf6 $15) 23. Nxf6+ {[%emt 0:01:58]} Kg7 {[%emt 0:00:02]} 24. Nh5+ {[%emt 0:00:02]} Kh6 {[%emt 0:00:03]} (24... Kf8 {simplifies} 25. cxb6 axb6 26. gxh3 Rxa3 27. Nf6 b5) 25. Nf4 {[%emt 0:00:01]} Rxa3 {[%emt 0:00:13]} 26. Ra1 {[%emt 0:00:09]} (26. cxb6 $1 $15 hxg2 27. Kxg2) 26... Rxa1 {[%emt 0:01:12]} (26... Rxe3 27. Rxa7 Rxc5 28. Nxh3) 27. Rxa1 {[%emt 0:00:00]} Rxc5 {[%emt 0:00:03]} (27... bxc5 28. Nxh3 (28. gxh3 Nc6 $11) (28. Rxa7 Rd8 $11) 28... Nd5 29. Nf4 (29. Rxa7 c3 $17) 29... Nxf4 30. exf4 $11) 28. Rxa7 {[%emt 0:00:02][%mdl 4096] Endgame KRN-KRN} Nd5 {[%emt 0:01:16]} 29. Ne2 {[%emt 0:00:37]} Nxe3 {[%emt 0:00:47] Threatens to win with ...Ra5.} 30. gxh3 {[%emt 0:00:14][%cal Og1f2] [#]} b5 $1 {[%emt 0:00:30][%cal Bb6b5,Bb5b4][%mdl 32]} 31. Kf2 {[%emt 0:00:22]} Nd5 {[%emt 0:00:14]} 32. Rxf7 {[%emt 0:00:30] [#]} b4 $1 {[%emt 0:00:06]} 33. Rb7 {[%emt 0:00:08] Inhibits Rb5.} Ra5 {[%emt 0:00:08][%mdl 1024] Black has strong compensation.} 34. Nd4 {[%emt 0:00:14]} c3 {[%emt 0:00:29]} 35. Kg3 {[%emt 0:00:23]} Rc5 $2 {[%emt 0:01:09]} ({And not} 35... Ra2 36. Rb5 Ne3 37. Rc5 $17 (37. Rxb4 $2 {is the wrong capture.} Rg2+ 38. Kf4 Nd5+ 39. Ke4 Nxb4 $19) (37. Rb6+ Kg7 $17)) (35... Ra1 $19 36. Rb5 Ne3) 36. Nc2 $11 {[%emt 0:00:02] The position is equal.} Kg5 {[%emt 0:01:09]} 37. h4+ {[%emt 0:00:17][%cal Bh3h4,Bh4h5,Bh5h6][%mdl 32]} Kf5 {[%emt 0:00:04]} 38. Rb8 {[%emt 0:01:05]} Ke5 {[%emt 0:00:34] Strongly threatening ...Kd6.} 39. h5 {[%emt 0:00:10]} Rc7 {[%emt 0:00:23]} 40. Rb5 {[%emt 0:01:13]} Kd6 {[%emt 0:00:05]} 41. h6 {[%emt 0:00:02]} Rh7 {[%emt 0:00:51]} 42. Nxb4 {[%emt 0:00:09]} Nxb4 {[%emt 0:00:00]} 43. Rxb4 {[%emt 0:00:00] Hoping for Rc4. KR-KR} Kc5 {[%emt 0:00:01] Inhibits Rc4+.} 44. Rb1 {[%emt 0:00:32]} Rxh6 {[%emt 0:00:02]} 45. h4 {[%emt 0:00:01]} Kd4 {[%emt 0:00:05]} 46. Kg4 {[%emt 0:00:07]} Rg6+ {[%emt 0:00:14]} 47. Kf5 {[%emt 0:00:02]} Rg2 {[%emt 0:00:08]} 48. h5 {[%emt 0:00:02]} Rh2 {[%emt 0:00:05]} 49. Kg5 {[%emt 0:00:49]} c2 {[%emt 0:00:18]} 50. Rc1 {[%emt 0:00:28]} Rg2+ {[%emt 0:00:02]} 51. Kf6 {[%emt 0:01:12]} Rf2 {[%emt 0:00:18]} 52. Kg6 {[%emt 0:00:28]} Kd3 {[%emt 0:00:06]} (52... Rxf3 53. Rxc2 Rg3+ 54. Kf5 $18) 53. h6 {[%emt 0:00:03]} Rxf3 {[%emt 0:00:01]} 54. Rh1 {[%emt 0:00:10]} Rf8 {[%emt 0:00:02]} 55. h7 {[%emt 0:00:02]} Rh8 {[%emt 0:00:04]} 56. Kg7 {[%emt 0:00:01]} Rxh7+ {[%emt 0:00:00]} 57. Kxh7 {[%emt 0:00:00]} Kd2 {[%emt 0:00:01]} 58. Rh2+ {[%emt 0:00:01]} Kd1 {[%emt 0:00:01]} 59. Rxc2 {[%emt 0:00:00]} Kxc2 {[%emt 0:00:00] Whites escaped into a draw.   Weighted Error Value: White=0.07 (flawless) /Black=0.07 (flawless)} 1/2-1/2

[Event "ChessKid Cup Div-III 2023"]
[Site "Online"]
[Date "2023.05.23"]
[Round "53.2"]
[White "Kamsky, Gata"]
[Black "Bok, Benjamin"]
[Result "1-0"]
[ECO "C67"]
[WhiteElo "2665"]
[BlackElo "2607"]
[Annotator "TA"]
[PlyCount "149"]
[EventDate "2023.05.21"]
[EventType "k.o."]
[EventCountry "NET"]
[SourceTitle "playchess.com"]
[Source "ChessBase"]
[SourceQuality "1"]
[TimeControl "900+3"]

{[%evp 19,149,13,19,18,4,0,2,0,20,-15,0,0,0,0,0,0,26,0,7,-14,-15,-10,0,-12,0,-10,0,0,34,27,22,33,37,53,88,87,200,210,200,200,291,299,295,300,287,231,229,195,193,157,153,139,139,139,162,162,207,200,229,219,205,0,214,135,229,210,225,211,214,205,365,243,362,366,329,320,316,314,294,137,131,133,120,129,197,193,199,196,230,228,383,381,383,382,410,350,350,321,388,338,344,324,658,471,1159,529,1896,1645,2165,1972,1972,2006,2030,1995,2088,1877,1447,1106,6041,5624,29986,29987,29987,29988,29990,29990,29992,29982,29982,5720,29983,29984]} 1. e4 {[%emt 0:00:08]} e5 {[%emt 0:00:06]} 2. Nf3 {[%emt 0:00:02]} Nc6 {[%emt 0:00:01]} 3. Bb5 {[%emt 0:00:02]} Nf6 {[%emt 0:00:09][%cal Bg8f6,Bf6e4,Be4d6,Bd6f5,Bf5h4][%mdl 32]} 4. O-O {[%emt 0:00:04]} Nxe4 {[%emt 0:00:01]} 5. d4 {[%emt 0:00:17]} Nd6 {[%emt 0:00:05]} 6. Bxc6 {[%emt 0:00:01]} dxc6 {[%emt 0:00:00]} 7. dxe5 {[%emt 0:00:01]} Nf5 {[%emt 0:00:01]} 8. Qxd8+ {[%emt 0:00:01]} Kxd8 {[%emt 0:00:00]} 9. Rd1+ {[%emt 0:00:01]} Ke8 {[%emt 0:00:03]} 10. Nc3 {[%emt 0:00:01]} Be7 {[%emt 0:00:16]} 11. Bf4 {[%emt 0:02:42] C67: Ruy Lopez: Berlin Defence: 4 0-0 Nxe4.} Nh4 {[%emt 0:00:33]} 12. Nd4 {[%emt 0:00:03][%cal Oe5e6]} Nf5 {[%emt 0:00:15]} 13. Nce2 {[%emt 0:01:29] [#] The position is equal.} a6 $146 {[%emt 0:02:01]} ({Predecessor:} 13... Nxd4 14. Nxd4 Bg4 15. Rd2 Rd8 16. h3 Bc8 17. Rad1 a6 {1-0 Sutovsky,E (2626)-Michalik,P (2576) EU-ch 16th Jerusalem 2015 (4)}) 14. h3 {[%emt 0:00:26]} Nxd4 {[%emt 0:00:16]} 15. Nxd4 {[%emt 0:00:02][%cal Oe5e6]} c5 {[%emt 0:00:01]} 16. Ne2 {[%emt 0:00:10]} Bf5 {[%emt 0:00:39]} 17. c4 {[%emt 0:00:08]} b5 {[%emt 0:01:47]} 18. Nc3 {[%emt 0:00:46]} c6 {[%emt 0:00:04]} 19. b3 {[%emt 0:00:33]} h5 {[%emt 0:00:37]} 20. Be3 {[%emt 0:00:29]} Rd8 {[%emt 0:00:05]} 21. Rac1 {[%emt 0:01:40]} g5 {[%emt 0:03:04]} 22. f3 {[%emt 0:00:40]} Bd3 {[%emt 0:04:43]} 23. Kf2 {[%emt 0:01:12]} Rg8 {[%emt 0:01:04]} 24. Ne2 {[%emt 0:01:21][%cal Bc3e2,Be2g3,Bg3h5,Bh5f6][%mdl 32]} bxc4 {[%emt 0:00:10]} 25. bxc4 {[%emt 0:00:04]} Rg6 {[%emt 0:00:06]} 26. Ng3 {[%emt 0:00:20]} h4 {[%emt 0:00:03]} 27. Nh5 {[%emt 0:00:04][%cal Oh5f6]} Rh6 {[%emt 0:00:08] [#] Inhibits Nf6+.} (27... Bf5 $16) 28. Nf6+ $1 $18 {[%emt 0:00:03][%mdl 512]} Bxf6 {[%emt 0:00:01]} 29. exf6 {[%emt 0:00:01]} Rg6 {[%emt 0:00:03] [#]} (29... Bf5 {was called for.} 30. Re1 (30. Bxg5 Rh5 $18) (30. Bxc5 Rxd1 31. Rxd1 Rxf6 $14) 30... Rg6 31. Bxg5+ {[%mdl 64] Discovered Attack} Kf8) 30. Re1 $1 {[%emt 0:00:17]} (30. Bxc5 Rxf6 31. Be3 Rg6 $16) 30... Kd7 {[%emt 0:00:06]} 31. Bxc5 {[%emt 0:00:02]} Kc8 {[%emt 0:00:02]} 32. Be7 {[%emt 0:00:04]} Rd7 {[%emt 0:00:03]} 33. Red1 {[%emt 0:00:06]} Rg8 {[%emt 0:00:03]} 34. Rc3 {[%emt 0:00:07]} Bf5 {[%emt 0:00:02]} 35. Rxd7 {[%emt 0:00:05]} Kxd7 $16 {[%emt 0:00:00][%mdl 4096] Endgame KRB-KRB} 36. Rb3 {[%emt 0:00:20] Prevents Rb8.} Ra8 {[%emt 0:00:02]} 37. Ke3 {[%emt 0:00:15]} Rc8 {[%emt 0:00:09]} 38. Kd4 {[%emt 0:00:04]} Ke6 {[%emt 0:00:04]} 39. Re3+ {[%emt 0:00:06]} Kd7 {[%emt 0:00:02]} 40. Rb3 {[%emt 0:00:07] Inhibits Rb8.} Ke6 {[%emt 0:00:03]} 41. Kc5 {[%emt 0:00:04]} Bg6 {[%emt 0:00:04]} (41... Bc2 $16 {is a better defense.}) 42. Re3+ $18 {[%emt 0:00:24]} Kf5 {[%emt 0:00:02]} 43. Re2 {[%emt 0:00:20]} Kf4 {[%emt 0:00:04]} 44. a4 {[%emt 0:00:35]} a5 $2 {[%emt 0:00:01] [#]} (44... Bd3 45. Bd6+ Kf5) 45. Bd6+ $1 {[%emt 0:00:08]} Kf5 {[%emt 0:00:01]} 46. Kb6 {[%emt 0:00:03]} Kxf6 {[%emt 0:00:03]} 47. c5 {[%emt 0:00:06]} (47. Kxa5 Bd3 48. Re1 Bxc4 $16) 47... Bd3 {[%emt 0:00:02]} 48. Rd2 {[%emt 0:00:01]} Bc4 {[%emt 0:00:06]} 49. Kxa5 {[%emt 0:00:18]} (49. Bc7 $18) 49... Ra8+ $16 {[%emt 0:00:02]} 50. Kb4 {[%emt 0:00:01]} Bf1 {[%emt 0:00:04]} 51. f4 {[%emt 0:00:10]} gxf4 {[%emt 0:00:05]} (51... Ra7 $16 52. Rd4 Kg6) 52. Rf2 $18 {[%emt 0:00:01]} ({Much less strong is} 52. Bxf4 $6 Bc4 53. a5 (53. Kxc4 Rxa4+ 54. Kd3 Rxf4 $11) 53... Bd5 $16) 52... Bd3 {[%emt 0:00:01]} 53. Rxf4+ {[%emt 0:00:01]} ({Don't play} 53. Bxf4 $6 Kg6 54. Bc7 f5 $16) 53... Ke6 {[%emt 0:00:01]} 54. Rxh4 {[%emt 0:00:02]} f5 $2 {[%emt 0:00:01]} (54... Ra7 {keeps fighting.} 55. Kc3 Bb1) 55. Rh6+ {[%emt 0:00:04]} Kf7 {[%emt 0:00:07]} 56. g3 {[%emt 0:00:04]} Be4 {[%emt 0:00:05]} 57. h4 {[%emt 0:00:05]} Kg7 {[%emt 0:00:03]} 58. Re6 {[%emt 0:00:01]} Kf7 {[%emt 0:00:02]} 59. Re7+ {[%emt 0:00:02]} Kf6 {[%emt 0:00:01]} 60. Rb7 {[%emt 0:00:03]} Ke6 $2 {[%emt 0:00:02]} (60... Bf3 61. a5 Be2) 61. a5 {[%emt 0:00:02] aiming for h5.} Kd5 {[%emt 0:00:03]} (61... Bf3 $142 62. Rh7 f4 63. Bxf4 Be4) 62. Bf4 {[%emt 0:00:03]} (62. Re7 $142 {White threatens Kc3 and mate.} Kd4 63. h5) 62... Kd4 {[%emt 0:00:06]} 63. h5 {[%emt 0:00:01]} Bd3 {[%emt 0:00:04]} 64. Rd7+ {[%emt 0:00:02]} Ke4 {[%emt 0:00:01]} 65. h6 {[%emt 0:00:02]} Bb5 {[%emt 0:00:05]} 66. h7 {[%emt 0:00:01]} Rh8 {[%emt 0:00:03]} 67. Bc1 {[%emt 0:00:03] Threatens to win with Bb2.} Rb8 {[%emt 0:00:04]} 68. Ka3 {[%emt 0:00:10] Black must now prevent Bb2.} Bc4 {[%emt 0:00:02]} 69. Bb2 {[%emt 0:00:09] Intending Rd4+ and mate.} Rb3+ {[%emt 0:00:03]} 70. Ka4 {[%emt 0:00:01]} Rxb2 {[%emt 0:00:03]} 71. h8=Q {[%emt 0:00:02]} ({Weaker is} 71. h8=B Bb5+ 72. Ka3 Rg2 $11) 71... Bb5+ {[%emt 0:00:01]} 72. Ka3 {[%emt 0:00:01]} Re2 {[%emt 0:00:01]} 73. Qd4+ {[%emt 0:00:03]} Kf3 {[%emt 0:00:01]} 74. Qf4+ {[%emt 0:00:01]} Kg2 {[%emt 0:00:00]} 75. Rd2 {[%emt 0:00:01] Weighted Error Value: White=0.15 (very precise) /Black=0.28 (precise)} 1-0

[Event "ChessKid Cup Div-III 2023"]
[Site "Online"]
[Date "2023.05.23"]
[Round "53.2"]
[White "Santos Ruiz, Miguel"]
[Black "Donchenko, Alexander"]
[Result "1/2-1/2"]
[ECO "B50"]
[WhiteElo "2590"]
[BlackElo "2669"]
[Annotator "TA"]
[PlyCount "73"]
[EventDate "2023.05.21"]
[EventType "k.o."]
[EventCountry "NET"]
[SourceTitle "playchess.com"]
[Source "ChessBase"]
[SourceQuality "1"]
[TimeControl "900+3"]

{[%evp 9,73,10,4,-7,16,0,0,14,35,28,46,35,44,46,60,58,58,-35,-1,-25,19,0,17,7,0,4,25,23,29,22,23,0,23,36,58,61,60,50,43,0,0,0,0,-61,-62,-154,-95,-181,-152,-187,-197,-181,-22,-20,-23,-36,-49,-48,-36,-1710,-966,-905,-908,-900,-890,-29974]} 1. e4 {[%emt 0:00:03]} c5 {[%emt 0:00:13]} 2. Nf3 {[%emt 0:00:04]} d6 {[%emt 0:00:01]} 3. Nc3 {[%emt 0:00:02]} Nf6 {[%emt 0:00:02]} 4. e5 {[%emt 0:00:00]} dxe5 {[%emt 0:00:01]} 5. Nxe5 {[%emt 0:00:00]} a6 {[%emt 0:00:06]} 6. Qe2 {[%emt 0:00:01] B50: Sicilian: 2...d6, Miscellaneous.} Nbd7 {[%emt 0:00:51]} 7. Nc4 {[%emt 0:00:02][%cal Rc4d6]} e6 {[%emt 0:00:48] [#]} 8. a4 $146 {[%emt 0:00:03] The position is equal.} ({Predecessor:} 8. g3 b5 9. Bg2 Rb8 10. Ne3 Be7 11. d3 Bb7 12. Bxb7 Rxb7 13. O-O O-O 14. f4 {½-½ Moroney,T (1770)-Nelson,P (1650) Auburn Hills op 2003 (5)}) 8... b6 {[%emt 0:00:39]} 9. Qf3 {[%emt 0:02:31] Repels Bb7} Rb8 {[%emt 0:00:13]} 10. Qg3 {[%emt 0:00:07]} Bb7 {[%emt 0:00:39]} 11. d3 {[%emt 0:00:02]} Rc8 {[%emt 0:02:26]} 12. Be2 {[%emt 0:00:17]} Be7 {[%emt 0:00:30]} 13. Nd6+ {[%emt 0:00:10]} ({Much weaker is} 13. Qxg7 $6 Rg8 14. Qh6 Rxg2 $11) (13. h4 $14) 13... Bxd6 $15 {[%emt 0:00:02]} 14. Qxd6 {[%emt 0:00:00]} Nb8 {[%emt 0:02:18]} ({Don't play} 14... Bxg2 15. Rg1 Bb7 16. Rxg7 $14) (14... e5 $5 {[%cal Rb7g2]} 15. Bf3 Bxf3 16. gxf3 Ng8 $11) 15. Qg3 {[%emt 0:00:25]} Nc6 {[%emt 0:00:09]} 16. Bf3 {[%emt 0:00:31]} ({Weaker is} 16. Qxg7 Rg8 17. Qh6 Nd4 $19) 16... O-O {[%emt 0:00:18]} 17. Bg5 {[%emt 0:01:15]} Kh8 {[%emt 0:00:15]} (17... Ba8 $5 {[%cal Rc6d4]}) 18. O-O-O {[%emt 0:00:22] Hoping for Qh4.} h6 {[%emt 0:00:19]} 19. Qh4 {[%emt 0:00:28]} Qd4 {[%emt 0:00:28] Threatens to win with ...Nh7.} 20. Be4 {[%emt 0:01:13] Black must now prevent Ne2. A strong pair of Bishops.} (20. Ne2 {simplifies} Qxh4 21. Bxh4 Nd5 22. d4) 20... Ng8 {[%emt 0:01:25]} (20... Nh7 $5 {[%cal Rh7g5]} 21. Be3 Qb4 $11) 21. g4 {[%emt 0:00:25]} f5 {[%emt 0:00:51]} 22. Be3 {[%emt 0:01:19]} Qd7 {[%emt 0:00:27]} 23. gxf5 {[%emt 0:00:19]} exf5 {[%emt 0:00:00]} 24. Bf3 {[%emt 0:00:10]} Ne5 {[%emt 0:00:50][%cal Bc6e5,Be5g4,Bg4f6][%mdl 32]} 25. Bxb7 {[%emt 0:00:15]} Qxb7 {[%emt 0:00:00]} 26. f4 {[%emt 0:00:10]} (26. Qg3 $11 Nf3 27. h4) 26... Ng4 {[%emt 0:00:08]} 27. Bd2 {[%emt 0:00:02] [#]} (27. Rhe1 $15) 27... b5 {[%emt 0:00:02]} ({Black should play} 27... c4 $1 {[%cal Rc4d3] Strongly threatening ...cxd3.} 28. dxc4 Rxc4) 28. h3 {[%emt 0:00:14]} (28. Ne4 $17 fxe4 29. Qxg4) 28... N4f6 $19 {[%emt 0:00:04] aiming for ...c4.} 29. Rhe1 {[%emt 0:00:08]} b4 {[%emt 0:00:10]} 30. Ne2 {[%emt 0:00:01] [#]} b3 $2 {[%emt 0:00:01]} (30... c4 $1 $19 {[%cal Rc4d3]} 31. dxc4 b3) 31. c4 $11 {[%emt 0:00:20]} Qd7 {[%emt 0:00:03][%csl LRa4,LRd3]} 32. Bc3 {[%emt 0:00:01]} Qxa4 {[%emt 0:00:06]} 33. Rg1 {[%emt 0:00:01]} Rcd8 {[%emt 0:00:12] ...Rfe8 is the strong threat.} 34. Ng3 $2 {[%emt 0:00:33][%mdl 8192] [#] This costs White the game.} (34. Qg3 $15 Rd7 35. Be5) 34... Rxd3 $3 {[%emt 0:00:08][%mdl 512] Black is clearly winning.} 35. Rxd3 {[%emt 0:00:16]} Qa1+ {[%emt 0:00:01][%mdl 64] Skewer} (35... Qxc4 $2 36. Rd6 $18) 36. Kd2 {[%emt 0:00:00]} Qxg1 {[%emt 0:00:01]} 37. Bxf6 {[%emt 0:01:52][%mdl 32768] Weighted Error Value: White=0.39/Black=0.43. An unexpected result.} 1/2-1/2